bitfinex/quotes_SOLUSD_20260120
["timestamp","ask_amount","ask_price","bid_price","bid_amount"]
[1768921914094,0.2,127.82,127.77,4.46415494]
[1768921914417,8.01996916,127.88,127.81,4.3314858]
[1768921914599,4.3314858,127.86,127.8,8.79564074]
[1768921914921,4.5314858,127.88,127.83,4.3314858]
[1768921915099,0.2,127.88,127.83,17.16]
[1768921915302,0.2,127.88,127.84,4.3314858]
[1768921915614,18.94868856,127.89,127.87,8.79564074]
[1768921915615,5.98492658,127.89,127.87,8.79564074]
[1768921915826,21.8900343,127.98,127.87,8.79564074]
[1768921915827,8.66376198,127.92,127.87,4.3314858]
[1768921916007,8.66376198,127.91,127.86,4.3314858]
[1768921916207,4.33227618,127.91,127.86,4.3314858]
[1768921916421,4.33227618,127.91,127.87,4.3314858]
[1768921916630,4.33227618,127.91,127.88,4.3314858]
[1768921916800,8.66376198,127.93,127.88,21.4914858]
[1768921916996,4.33227618,127.93,127.9,4.3314858]
[1768921917213,4.33227618,127.93,127.88,17.16]
[1768921917426,4.33227618,127.92,127.88,17.16]
[1768921917732,4.3314858,127.94,127.89,4.3314858]
[1768921918125,32.07824404,127.98,127.91,4.3314858]
[1768921918126,4.3314858,127.96,127.91,4.3314858]
[1768921918415,8.21240616,127.98,127.91,4.3314858]
[1768921918598,0.3985485,127.98,127.91,4.3314858]
[1768921918797,4.3314858,127.96,127.91,4.3314858]
[1768921919018,4.3314858,127.94,127.9,17.16]
[1768921919218,4.3314858,127.92,127.88,17.16]
[1768921919409,4.3314858,127.93,127.88,21.4914858]
[1768921919603,4.3314858,127.92,127.88,17.16]
[1768921919809,8.66376198,127.89,127.82,7.82292335]
[1768921920010,4.3314858,127.87,127.83,17.16]
[1768921920209,4.33227618,127.85,127.78,7.8258609]
[1768921920411,4.3314858,127.83,127.79,17.16]
[1768921920704,4.33227618,127.86,127.81,4.3314858]
[1768921920909,4.3314858,127.87,127.82,4.3314858]
[1768921921323,8.66376198,127.88,127.83,4.3314858]
[1768921921623,4.33227618,127.88,127.84,4.3314858]
[1768921922220,8.66376198,127.92,127.87,4.3314858]
[1768921922422,4.33227618,127.87,127.82,4.3314858]
[1768921922624,4.3314858,127.86,127.82,17.16]
[1768921922824,8.66376198,127.87,127.82,21.4914858]
[1768921923003,4.3314858,127.84,127.82,17.16]
[1768921923199,4.3314858,127.84,127.78,4.3314858]
[1768921923530,4.3314858,127.85,127.8,4.3314858]
[1768921923723,4.3314858,127.85,127.79,4.46415494]
[1768921923724,4.3314858,127.83,127.79,4.46415494]
[1768921924221,4.04681164,127.9,127.83,4.46415494]
[1768921924419,4.3314858,127.9,127.85,4.3314858]
[1768921924625,23.1165132,127.96,127.89,8.79564074]
[1768921924626,4.3314858,127.94,127.89,8.79564074]
[1768921924801,4.3314858,127.95,127.9,4.3314858]
[1768921924996,17.16,127.96,127.9,4.3314858]
[1768921925202,4.3314858,127.96,127.91,4.3314858]
[1768921925403,4.3314858,127.94,127.88,25.93564074]
[1768921925726,4.04681164,127.97,127.91,4.3314858]
[1768921925904,4.04681164,127.97,127.92,4.3314858]
[1768921926105,0.3985485,127.98,127.88,21.60415494]
[1768921926106,12.146595,127.96,127.88,21.60415494]
[1768921926308,4.04681164,127.97,127.9,4.46415494]
[1768921926518,0.3985485,127.98,127.94,8.79564074]
[1768921926708,0.3985485,127.98,127.92,4.3314858]
[1768921926907,4.3314858,127.96,127.91,8.79564074]
[1768921927123,4.04681164,127.97,127.9,4.3314858]
[1768921927307,4.3314858,127.93,127.88,4.3314858]
[1768921927626,4.3314858,127.96,127.91,4.3314858]
[1768921927815,12.25912636,127.98,127.86,25.93564074]
[1768921927816,4.3314858,127.92,127.86,25.93564074]
[1768921928000,4.04681164,127.93,127.85,4.3314858]
[1768921928200,4.3314858,127.9,127.84,4.46415494]
[1768921928407,4.3314858,127.89,127.84,8.79564074]
[1768921928608,7.81804131,127.91,127.85,4.46415494]
[1768921928826,4.3314858,127.91,127.86,8.79564074]
[1768921929130,11.86302385,127.94,127.87,4.46415494]
[1768921929429,4.3314858,127.93,127.88,8.79564074]
[1768921929626,4.3314858,127.94,127.89,4.3314858]
[1768921929833,4.3314858,127.95,127.89,8.79564074]
[1768921930016,4.3314858,127.95,127.9,4.46415494]
[1768921930215,4.3314858,127.97,127.92,4.3314858]
[1768921930433,4.3314858,127.97,127.92,8.79564074]
[1768921930726,0.3985485,127.98,127.94,4.3314858]
[1768921930941,0.3985485,127.98,127.94,7.39696525]
[1768921931122,0.3985485,127.98,127.96,7.39696525]
[1768921931524,0.24046812,128.04,127.97,11.86112019]
[1768921931732,0.24046812,128.04,127.99,11.86112019]
[1768921931733,0.2,128.04,127.99,11.86112019]
[1768921931910,7.59696525,128.04,127.99,4.46415494]
[1768921932105,7.39696525,128.03,127.99,4.46415494]
[1768921932549,7.59696525,128.04,127.99,11.86112019]
[1768921932841,0.2,128.04,128.0,11.86112019]
[1768921933009,7.59696525,128.04,128.0,4.46415494]
[1768921933212,0.2,128.04,128.0,11.86112019]
[1768921933552,7.59696525,128.04,128.0,4.46415494]
[1768921933707,7.39696525,128.03,127.98,4.46415494]
[1768921933910,7.39696525,128.01,127.96,4.46415494]
[1768921934133,4.33227618,128.0,127.94,17.14]
[1768921934333,7.39696525,128.01,127.96,7.39696525]
[1768921934643,0.2,128.04,127.94,24.95585909]
[1768921934644,0.2,128.04,128.0,7.39696525]
[1768921935009,0.2,128.04,127.99,4.46415494]
[1768921935010,7.59696525,128.04,127.99,11.86112019]
[1768921935415,7.39696525,128.01,127.95,4.08492617]
[1768921935745,7.39696525,128.01,127.96,7.39696525]
[1768921935918,7.39696525,127.98,127.92,4.08492617]
[1768921936118,7.39696525,127.98,127.93,7.39696525]
[1768921936521,7.39696525,127.99,127.94,11.48189142]
[1768921936819,7.39696525,127.97,127.92,11.48189142]
[1768921937513,7.39696525,127.94,127.89,4.08492617]
[1768921937713,7.39696525,127.93,127.89,4.08492617]
[1768921937922,7.39696525,127.92,127.87,21.76189142]
[1768921938141,7.39696525,127.92,127.87,14.36492617]
[1768921938324,7.39696525,127.91,127.87,4.08492617]
[1768921938516,7.81635176,127.94,127.87,4.08492617]
[1768921938721,7.39696525,127.93,127.88,7.39696525]
[1768921938914,7.39696525,127.92,127.87,19.30210667]
[1768921939237,7.39696525,127.93,127.88,11.48189142]
[1768921939742,7.39696525,127.92,127.87,11.48189142]
[1768921940114,7.39696525,127.93,127.89,4.08492617]
[1768921940338,7.39696525,127.94,127.89,4.08492617]
[1768921940542,7.39696525,127.96,127.91,7.39696525]
[1768921940738,7.39696525,127.95,127.9,11.48189142]
[1768921940913,7.39696525,127.96,127.9,4.08492617]
[1768921941119,7.39696525,127.95,127.9,11.48189142]
[1768921941443,7.39696525,127.95,127.89,7.81897598]
[1768921941444,7.39696525,127.97,127.93,7.39696525]
[1768921941628,7.39696525,127.99,127.94,7.39696525]
[1768921941812,7.39696525,127.98,127.94,4.08492617]
[1768921942017,4.28486911,128.01,127.94,11.48189142]
[1768921942257,7.39696525,128.0,127.95,7.39696525]
[1768921942451,7.39696525,128.01,127.96,7.39696525]
[1768921942743,7.39696525,128.02,127.97,7.39696525]
[1768921942922,7.39576008,128.01,127.96,11.48068625]
[1768921943123,7.39576008,128.0,127.96,4.08492617]
[1768921943446,7.39576008,128.03,127.98,7.39576008]
[1768921943636,7.39576008,128.02,127.97,11.48068625]
[1768921943818,7.39576008,128.01,127.96,7.39576008]
[1768921944331,7.39576008,127.98,127.94,17.14]
[1768921944537,7.39576008,127.96,127.91,11.48068625]
[1768921944735,7.39576008,127.96,127.91,7.39576008]
[1768921945123,7.39576008,127.95,127.9,11.48068625]
[1768921945728,4.28486911,127.99,127.91,11.48068625]
[1768921945955,7.39576008,127.96,127.92,7.39576008]
[1768921946114,7.39576008,127.95,127.9,7.39576008]
[1768921946320,7.39576008,127.95,127.87,17.12]
[1768921946321,19.53255634,128.0,127.91,11.48068625]
[1768921946631,7.39576008,127.99,127.94,7.39576008]
[1768921946838,7.39576008,128.02,127.98,4.08492617]
[1768921947028,7.59576008,128.04,127.99,7.39576008]
[1768921947230,0.2,128.04,127.99,4.08492617]
[1768921947418,0.2,128.04,128.01,7.39576008]
[1768921947633,0.2,128.04,128.0,4.08492617]
[1768921947837,0.2,128.04,128.0,11.48068625]
[1768921948218,7.59576008,128.04,127.99,7.39576008]
[1768921948619,7.39576008,128.03,127.98,11.48068625]
[1768921948818,7.39576008,128.01,127.96,11.48068625]
[1768921949041,7.39576008,127.99,127.94,11.48068625]
[1768921949775,32.87946157,128.04,127.95,7.39576008]
[1768921949944,0.2,128.04,128.01,7.39576008]
[1768921950317,0.2,128.04,128.0,7.39576008]
[1768921950524,0.2,128.04,128.02,7.39576008]
[1768921950722,0.2,128.04,128.03,7.39576008]
[1768921950942,0.2,128.07,128.03,4.30522668]
[1768921951242,0.2,128.07,128.04,4.30522668]
[1768921952343,3.74973228,128.14,128.07,4.08492617]
[1768921952535,0.2,128.15,128.1,4.51633736]
[1768921952720,0.2,128.15,128.12,4.51633736]
[1768921952927,0.2,128.15,128.13,4.51633736]
[1768921953123,6.08914128,128.18,128.15,4.08492617]
[1768921953323,0.2,128.2,128.17,4.51633736]
[1768921953633,4.68341761,128.24,128.16,4.51633736]
[1768921953945,0.3985485,128.24,128.22,4.51633736]
[1768921954141,4.28486911,128.27,128.23,4.51633736]
[1768921954354,8.80120647,128.26,128.17,17.12]
[1768921954533,4.28486911,128.23,128.17,24.9220265]
[1768921954723,4.28486911,128.25,128.17,24.9220265]
[1768921954925,4.28486911,128.24,128.2,7.03294825]
[1768921955158,4.28486911,128.23,128.19,7.03294825]
[1768921955332,4.28486911,128.23,128.2,7.03294825]
[1768921955548,4.28486911,128.25,128.21,11.71833142]
[1768921955850,38.94497921,128.39,128.22,0.68030071]
[1768921955851,5.34408856,128.3,128.22,0.68030071]
[1768921956055,4.28486911,128.3,128.19,0.68030071]
[1768921956231,4.28486911,128.27,128.22,11.71833142]
[1768921956430,5.54408856,128.33,128.22,11.71833142]
[1768921956431,16.00320053,128.3,128.24,11.71833142]
[1768921956636,4.28486911,128.32,128.28,11.71833142]
[1768921956837,4.28486911,128.32,128.23,0.60066029]
[1768921956838,4.28486911,128.32,128.29,11.71833142]
[1768921957037,0.2,128.33,128.29,11.71833142]
[1768921957549,0.2,128.33,128.3,11.71833142]
[1768921958154,0.2,128.33,128.31,11.71833142]
[1768921958330,0.2,128.33,128.32,11.71833142]
[1768921958531,4.28486911,128.38,128.33,11.71833142]
[1768921958742,4.28486911,128.38,128.34,11.71833142]
[1768921958950,4.28486911,128.37,128.3,7.79421976]
[1768921959276,4.28486911,128.35,128.31,11.71833142]
[1768921959429,4.28486911,128.35,128.3,11.71833142]
[1768921959634,16.00320053,128.35,128.3,11.71833142]
[1768921959959,5.9565132,128.43,128.26,7.79621374]
[1768921959960,4.28486911,128.33,128.26,7.79621374]
[1768921960148,5.9565132,128.4,128.27,11.71833142]
[1768921960149,4.28486911,128.31,128.27,11.71833142]
[1768921960849,11.71833142,128.3,128.25,11.71833142]
[1768921961070,4.28486911,128.31,128.26,11.71833142]
[1768921961433,16.00320053,128.29,128.24,17.12]
[1768921961634,4.28486911,128.32,128.25,11.71833142]
[1768921961941,11.71833142,128.33,128.28,11.71833142]
[1768921962347,5.34408856,128.36,128.26,11.71833142]
[1768921962654,5.34408856,128.36,128.24,21.20492617]
[1768921962655,5.34408856,128.36,128.28,11.71833142]
[1768921962838,7.79119594,128.35,128.27,11.71833142]
[1768921963042,11.71833142,128.33,128.28,11.71833142]
[1768921963244,7.79119594,128.35,128.26,11.71833142]
[1768921963441,11.71833142,128.31,128.26,11.71833142]
[1768921963648,11.71833142,128.32,128.27,11.71833142]
[1768921963851,15.42291835,128.28,128.21,7.79916885]
[1768921964050,3.70458693,128.27,128.21,11.71833142]
[1768921964239,3.70458693,128.3,128.25,11.71833142]
[1768921964445,45.26314341,128.48,128.27,11.71833142]
[1768921964446,3.70458693,128.33,128.27,11.71833142]
[1768921964640,15.42291835,128.33,128.28,11.71833142]
[1768921964843,15.42291835,128.35,128.3,11.71833142]
[1768921965143,15.38670634,128.33,128.27,11.71833142]
[1768921965344,15.38670634,128.33,128.25,28.68109332]
[1768921965345,3.66837492,128.33,128.29,11.71833142]
[1768921965706,3.66837492,128.42,128.31,3.78391485]
[1768921965964,7.78573653,128.44,128.32,11.71833142]
[1768921965965,11.71833142,128.37,128.32,11.71833142]
[1768921966276,3.66837492,128.38,128.34,11.71833142]
[1768921966442,3.66837492,128.41,128.35,11.71833142]
[1768921966642,15.38670634,128.41,128.35,11.71833142]
[1768921966839,3.66837492,128.38,128.33,11.71833142]
[1768921967062,15.38670634,128.37,128.32,11.71833142]
[1768921967266,3.66837492,128.39,128.35,11.71833142]
[1768921967469,3.66837492,128.42,128.36,11.71833142]
[1768921967768,15.38670634,128.42,128.33,11.57580656]
[1768921967971,11.71833142,128.41,128.36,11.71833142]
[1768921968167,3.66837492,128.42,128.37,11.71833142]
[1768921968466,15.38670634,128.41,128.36,11.71833142]
[1768921968675,15.38670634,128.43,128.38,11.71833142]
[1768921968846,15.38670634,128.42,128.37,11.71833142]
[1768921969183,11.71833142,128.43,128.38,11.71833142]
[1768921969481,15.38670634,128.44,128.39,11.71833142]
[1768921969644,23.17247631,128.44,128.39,11.71833142]
[1768921969844,15.38670634,128.43,128.38,11.71833142]
[1768921970355,11.71833142,128.41,128.36,11.71833142]
[1768921970557,3.66837492,128.41,128.36,11.71833142]
[1768921970757,15.38670634,128.4,128.35,11.71833142]
[1768921970960,15.38670634,128.4,128.36,11.71833142]
[1768921970961,3.66837492,128.4,128.36,11.71833142]
[1768921971172,3.66837492,128.4,128.35,11.71833142]
[1768921971467,3.66837492,128.4,128.36,11.71833142]
[1768921971644,15.38670634,128.42,128.37,11.71833142]
[1768921972044,15.38670634,128.42,128.33,19.48010354]
[1768921972045,15.38670634,128.41,128.36,11.71833142]
[1768921972355,17.08,128.47,128.31,36.56336713]
[1768921972356,15.38670634,128.45,128.4,11.71833142]
[1768921972559,3.66837492,128.45,128.42,11.71833142]
[1768921972863,3.66837492,128.46,128.41,11.71833142]
[1768921973065,15.38670634,128.46,128.41,11.71833142]
[1768921973269,3.66837492,128.44,128.37,24.86986318]
[1768921973568,15.38670634,128.43,128.38,11.71833142]
[1768921973764,27.24373202,128.47,128.37,17.08]
[1768921973765,15.38670634,128.41,128.37,17.08]
[1768921974070,3.66837492,128.41,128.37,28.79833142]
[1768921974242,11.71833142,128.42,128.37,17.08]
[1768921974448,9.01246348,128.44,128.38,11.71833142]
[1768921974749,20.7307949,128.44,128.38,11.71833142]
[1768921974950,11.25902656,128.48,128.43,7.49065164]
[1768921975169,3.66837492,128.47,128.43,7.49065164]
[1768921975460,3.66837492,128.47,128.4,3.78391485]
[1768921975461,3.66837492,128.47,128.42,7.49065164]
[1768921975768,11.15902656,128.46,128.41,7.49065164]
[1768921976080,11.15902656,128.46,128.39,7.49065164]
[1768921976081,7.49065164,128.44,128.39,7.49065164]
[1768921976261,11.15902656,128.45,128.4,7.49065164]
[1768921976669,5.34408856,128.46,128.41,7.49065164]
[1768921976869,18.94335328,128.47,128.41,7.49065164]
[1768921977069,3.66837492,128.44,128.39,7.49065164]
[1768921977284,3.66837492,128.44,128.4,7.49065164]
[1768921978280,11.15902656,128.44,128.38,3.78391485]
[1768921978486,11.15902656,128.44,128.34,7.49065164]
[1768921978487,11.15902656,128.42,128.36,7.49065164]
[1768921978659,11.15902656,128.42,128.36,11.27456649]
[1768921978977,7.49065164,128.41,128.36,3.78391485]
[1768921979182,7.49065164,128.41,128.34,28.35456649]
[1768921979183,11.15902656,128.4,128.34,28.35456649]
[1768921979388,3.66837492,128.38,128.33,7.49065164]
[1768921979573,11.15902656,128.42,128.36,11.27456649]
[1768921979758,7.49065164,128.43,128.37,7.49065164]
[1768921979953,11.15902656,128.43,128.37,7.49065164]
[1768921980159,11.15902656,128.45,128.39,7.49065164]
[1768921980359,3.66837492,128.45,128.4,7.49065164]
[1768921980578,11.15902656,128.42,128.36,17.08]
[1768921980782,11.15902656,128.42,128.37,7.49065164]
[1768921981085,3.66837492,128.47,128.41,7.49065164]
[1768921981383,11.15902656,128.47,128.4,7.78809961]
[1768921981699,7.59065164,128.48,128.4,3.78391485]
[1768921981986,11.15902656,128.47,128.41,7.49065164]
[1768921982180,11.15902656,128.47,128.4,3.78391485]
[1768921982181,3.66837492,128.47,128.42,7.49065164]
[1768921982481,0.1,128.48,128.45,7.49065164]
[1768921982665,0.1,128.48,128.46,7.49065164]
[1768921983273,0.1,128.48,128.42,28.65061752]
[1768921983481,0.1,128.48,128.45,7.49065164]
[1768921983783,3.76837492,128.48,128.42,20.86391485]
[1768921983975,3.66837492,128.45,128.39,7.78831934]
[1768921984177,3.66837492,128.43,128.39,7.49065164]
[1768921984479,7.49065164,128.47,128.42,7.49065164]
[1768921984657,0.1,128.48,128.43,3.78391485]
[1768921984863,0.1,128.48,128.46,7.49065164]
[1768921985187,0.1,128.48,128.45,7.49065164]
[1768921985564,11.15902656,128.47,128.41,17.06]
[1768921985761,11.15902656,128.46,128.41,17.06]
[1768921985966,0.1,128.48,128.43,7.49065164]
[1768921985967,3.76837492,128.48,128.43,7.49065164]
[1768921986177,3.76837492,128.48,128.43,7.78623169]
[1768921986482,0.3985485,128.49,128.47,7.49065164]
[1768921986688,0.3985485,128.49,128.46,7.49065164]
[1768921986871,0.3985485,128.49,128.48,7.49065164]
[1768921987066,0.3985485,128.49,128.47,7.49065164]
[1768921987264,11.55757506,128.49,128.42,11.57028093]
[1768921987467,4.06692342,128.49,128.44,7.49065164]
[1768921987883,4.06692342,128.49,128.45,7.49065164]
[1768921988083,4.06692342,128.49,128.42,11.57062242]
[1768921988389,4.06692342,128.49,128.44,7.49065164]
[1768921988584,3.66837492,128.48,128.43,7.49065164]
[1768921988781,3.66837492,128.45,128.41,17.06]
[1768921989085,7.49065164,128.43,128.38,7.49065164]
[1768921989388,11.15902656,128.43,128.38,7.49065164]
[1768921989802,11.15902656,128.43,128.37,15.28044188]
[1768921989977,11.15902656,128.43,128.37,7.49065164]
[1768921990179,3.66837492,128.41,128.36,24.55065164]
[1768921990371,11.15902656,128.43,128.37,7.49065164]
[1768921990574,3.66837492,128.43,128.37,7.49065164]
[1768921990886,7.49065164,128.42,128.37,15.28045956]
[1768921991064,7.49065164,128.42,128.37,7.78980792]
[1768921991268,7.49065164,128.42,128.36,36.12491249]
[1768921991485,7.49065164,128.42,128.37,7.49065164]
[1768921991890,11.15902656,128.45,128.4,7.49065164]
[1768921992069,3.66837492,128.45,128.4,7.49065164]
[1768921992480,3.66837492,128.48,128.41,7.49065164]
[1768921992679,3.66837492,128.48,128.43,7.49065164]
[1768921993195,3.66837492,128.47,128.41,15.27816446]
[1768921993380,11.15902656,128.47,128.41,15.27816446]
[1768921993580,3.66837492,128.47,128.42,7.49065164]
[1768921993778,11.15902656,128.47,128.42,7.49065164]
[1768921993978,3.66837492,128.44,128.39,7.49065164]
[1768921994178,7.49065164,128.42,128.36,15.28080916]
[1768921994398,7.49065164,128.41,128.35,32.34166858]
[1768921994594,7.49065164,128.4,128.35,24.85101694]
[1768921994779,11.15902656,128.41,128.35,32.34166858]
[1768921994977,7.49065164,128.39,128.33,7.49065164]
[1768921995189,3.77672097,128.38,128.32,11.29345382]
[1768921995367,11.26737261,128.38,128.32,11.59558612]
[1768921995572,7.49065164,128.37,128.31,32.34406823]
[1768921995787,3.77672097,128.37,128.32,15.28366342]
[1768921995991,7.49065164,128.4,128.34,7.49065164]
[1768921996585,11.26737261,128.41,128.35,7.49065164]
[1768921997274,11.26737261,128.43,128.37,11.29345382]
[1768921997490,11.26737261,128.43,128.38,7.49065164]
[1768921997883,11.26737261,128.43,128.37,11.29345382]
[1768921998186,11.26737261,128.43,128.37,7.49065164]
[1768921998678,3.77672097,128.46,128.41,7.49065164]
[1768921998990,3.77672097,128.46,128.38,3.80280218]
[1768921998991,3.77672097,128.48,128.43,7.49065164]
[1768921999784,3.77672097,128.48,128.43,7.78602742]
[1768922000000,3.77672097,128.48,128.44,7.49065164]
[1768922000383,3.77672097,128.48,128.42,7.78687453]
[1768922000579,3.77672097,128.48,128.43,7.49065164]
[1768922000786,3.77672097,128.48,128.44,7.49065164]
[1768922000986,3.77672097,128.48,128.43,7.49065164]
[1768922001288,3.77672097,128.47,128.41,7.78717036]
[1768922001593,7.49065164,128.48,128.39,11.29345382]
[1768922001594,11.26737261,128.45,128.39,11.29345382]
[1768922001787,3.77672097,128.45,128.4,7.49065164]
[1768922002397,11.26737261,128.45,128.4,7.49065164]
[1768922002606,3.77672097,128.45,128.41,7.49065164]
[1768922002781,3.77672097,128.44,128.37,20.86280218]
[1768922003102,11.26927384,128.43,128.37,7.49255287]
[1768922003411,3.77672097,128.4,128.36,7.49255287]
[1768922003589,11.26927384,128.4,128.35,24.55255287]
[1768922003787,11.26927384,128.39,128.35,17.06]
[1768922004498,7.49255287,128.37,128.32,15.28534908]
[1768922004696,11.26927384,128.38,128.32,15.28534908]
[1768922005000,11.26927384,128.36,128.31,17.06]
[1768922005501,5.34408856,128.4,128.33,3.80280218]
[1768922005502,3.77672097,128.39,128.33,3.80280218]
[1768922005702,11.26927384,128.41,128.35,7.49255287]
[1768922006201,11.26927384,128.4,128.35,7.49255287]
[1768922006604,11.26927384,128.38,128.31,28.6563207]
[1768922006784,11.26927384,128.37,128.31,32.34607139]
[1768922006984,11.26927384,128.37,128.32,7.49255287]
[1768922007190,3.77672097,128.37,128.31,24.85351852]
[1768922007393,11.26927384,128.36,128.31,17.06]
[1768922007594,11.26927384,128.36,128.31,24.55255287]
[1768922007899,11.26927384,128.35,128.31,17.06]
[1768922008094,3.77672097,128.35,128.31,17.06]
[1768922008593,3.77672097,128.41,128.34,7.49255287]
[1768922008800,5.07948392,128.4,128.36,7.49255287]
[1768922009109,3.77672097,128.41,128.36,7.49255287]
[1768922009310,5.08711877,128.4,128.37,7.49255287]
[1768922009612,3.77672097,128.41,128.37,7.49255287]
[1768922009845,7.49255287,128.43,128.39,7.49255287]
[1768922009846,3.77672097,128.43,128.39,7.49255287]
[1768922009990,5.08726377,128.42,128.38,7.49255287]
[1768922010187,3.77672097,128.43,128.31,3.80280218]
[1768922010188,3.77672097,128.4,128.31,3.80280218]
[1768922010390,11.26927384,128.32,128.24,3.80280218]
[1768922010588,5.34408856,128.36,128.25,3.80280218]
[1768922010589,5.09009018,128.31,128.25,3.80280218]
[1768922010787,7.49255287,128.33,128.28,7.79541799]
[1768922010989,5.09019735,128.32,128.28,15.28797086]
[1768922011195,5.34408856,128.36,128.26,19.49092495]
[1768922011196,7.49255287,128.33,128.26,7.79627322]
[1768922011410,5.09005105,128.32,128.27,7.49255287]
[1768922011725,5.08747761,128.31,128.26,7.69255287]
[1768922011883,7.49255287,128.33,128.28,7.49255287]
[1768922012083,7.49255287,128.33,128.26,4.00280218]
[1768922012308,7.49255287,128.33,128.28,7.49255287]
[1768922012487,11.26927384,128.33,128.26,4.00280218]
[1768922012689,24.82119318,128.36,128.26,4.00280218]
[1768922012690,3.77672097,128.35,128.29,7.49255287]
[1768922013010,3.77672097,128.35,128.3,7.49255287]
[1768922013207,3.77672097,128.35,128.31,7.49255287]
[1768922013816,3.77672097,128.37,128.31,15.28612976]
[1768922014111,3.77672097,128.37,128.32,7.49255287]
[1768922014312,11.26927384,128.39,128.31,11.59637907]
[1768922014487,3.77672097,128.41,128.35,7.49255287]
[1768922014691,5.08483664,128.4,128.36,7.49255287]
[1768922014889,15.27968985,128.42,128.3,7.49255287]
[1768922014890,3.77672097,128.36,128.3,7.49255287]
[1768922015116,11.26927384,128.36,128.31,7.49255287]
[1768922015413,11.26927384,128.36,128.32,7.49255287]
[1768922015414,3.77672097,128.36,128.32,7.49255287]
[1768922015618,3.77672097,128.38,128.34,7.49255287]
[1768922015914,11.26927384,128.38,128.32,11.59560606]
[1768922016118,11.26927384,128.38,128.33,7.49255287]
[1768922016290,3.77672097,128.38,128.34,7.49255287]
[1768922017191,11.26927384,128.4,128.35,7.49255287]
[1768922017506,3.77672097,128.4,128.36,7.49255287]
[1768922017886,11.26927384,128.4,128.35,7.49255287]
[1768922018110,11.26927384,128.39,128.34,7.49255287]
[1768922018303,11.26927384,128.38,128.33,7.49255287]
[1768922018613,11.26927384,128.38,128.32,7.79279238]
[1768922018614,3.77672097,128.37,128.32,15.28534525]
[1768922018988,3.77672097,128.37,128.32,7.49255287]
[1768922019188,3.77672097,128.36,128.31,7.49255287]
[1768922019411,3.77672097,128.35,128.3,17.08]
[1768922019598,11.26927384,128.35,128.3,17.08]
[1768922019801,7.49255287,128.34,128.3,17.08]
[1768922020122,11.26927384,128.34,128.3,17.08]
[1768922020305,7.49255287,128.35,128.3,24.57255287]
[1768922020606,11.26927384,128.34,128.3,17.08]
[1768922020816,7.49255287,128.33,128.28,7.79519858]
[1768922021024,11.26927384,128.32,128.26,21.08280218]
[1768922021212,11.26927384,128.32,128.27,7.49255287]
[1768922021527,3.77672097,128.32,128.27,15.2884382]
[1768922021824,7.49255287,128.31,128.26,36.3717625]
[1768922022205,11.26927384,128.31,128.26,25.07640745]
[1768922022407,7.49255287,128.29,128.26,0.2]
[1768922023424,11.41523483,128.35,128.28,7.49255287]
[1768922023724,3.92268196,128.33,128.28,7.49255287]
[1768922023923,11.41523483,128.33,128.28,7.49255287]
[1768922024102,3.92268196,128.33,128.28,7.49255287]
[1768922024516,3.92268196,128.33,128.27,21.04951932]
[1768922024712,11.41523483,128.33,128.27,28.54207219]
[1768922024916,11.41523483,128.33,128.27,36.33806616]
[1768922025522,7.49255287,128.32,128.27,28.54207219]
[1768922025725,11.41523483,128.33,128.27,28.54207219]
[1768922025926,11.14372791,128.31,128.27,17.08]
[1768922026432,3.65117504,128.31,128.27,17.08]
[1768922026609,11.14372791,128.32,128.27,24.57255287]
[1768922026925,3.65117504,128.31,128.27,17.08]
[1768922027133,7.49255287,128.3,128.27,17.08]
[1768922027315,7.49255287,128.3,128.26,0.2]
[1768922028030,11.14372791,128.31,128.26,7.69255287]
[1768922028328,11.14372791,128.31,128.26,15.48913953]
[1768922028704,11.14372791,128.31,128.26,7.99658666]
[1768922028907,11.14372791,128.31,128.26,0.2]
[1768922029416,3.65117504,128.33,128.27,7.49255287]
[1768922029615,11.14372791,128.33,128.27,7.49255287]
[1768922029928,11.14372791,128.33,128.27,15.2884998]
[1768922030426,11.14372791,128.32,128.26,11.76377336]
[1768922030650,3.65117504,128.34,128.28,7.49255287]
[1768922030933,3.65117504,128.36,128.28,20.84739692]
[1768922031136,11.14372791,128.33,128.28,24.57255287]
[1768922031333,32.60477863,128.39,128.28,17.08]
[1768922031334,3.65117504,128.32,128.28,17.08]
[1768922031717,11.14372791,128.34,128.28,24.57255287]
[1768922031923,7.49255287,128.33,128.28,24.87528192]
[1768922032126,11.14372791,128.33,128.28,24.87528192]
[1768922032369,3.65117504,128.35,128.31,7.49255287]
[1768922032622,3.65117504,128.37,128.33,7.49255287]
[1768922032823,3.65117504,128.37,128.31,11.25994979]
[1768922032824,11.14372791,128.37,128.31,11.25994979]
[1768922033005,3.65117504,128.37,128.32,7.49255287]
[1768922033343,11.14372791,128.37,128.32,7.49255287]
[1768922033648,3.65117504,128.36,128.29,3.76739692]
[1768922033927,7.49255287,128.37,128.29,3.76739692]
[1768922033928,3.65117504,128.34,128.29,15.28728257]
[1768922034336,11.14372791,128.34,128.29,15.28728257]